bitfinex-derivatives/quotes_ETHF0:USTF0_20250330
["timestamp","ask_amount","ask_price","bid_price","bid_amount"]
[1743372424149,4.32393,1792.4,1792.3,0.00837544]
[1743372424452,4.32393,1792.4,1792.3,1.39627544]
[1743372424748,14.46814,1792.4,1791.8,5.25148]
[1743372424945,3.2078,1792.1,1792.0,1.11633]
[1743372425448,3.2078,1792.1,1792.0,6.69873]
[1743372425652,3.2078,1792.1,1792.0,5.5824]
[1743372426040,4.32412,1792.1,1792.0,5.5824]
[1743372426751,1.11638,1792.0,1791.9,0.00837544]
[1743372426944,4.32414,1792.1,1791.9,0.00837544]
[1743372427245,3.2078,1792.1,1791.9,0.00837544]
[1743372427640,1.11638,1792.0,1791.9,0.00837544]
[1743372429156,1.11638,1792.0,1791.3,4.117]
[1743372429157,1.11671,1791.5,1791.3,4.117]
[1743372429448,4.32451,1791.5,1791.4,5.5824]
[1743372430440,3.2078,1791.5,1791.4,5.5824]
[1743372430646,4.32449,1791.5,1791.4,5.5824]
[1743372431745,1.11675,1791.4,1791.3,0.00837544]
[1743372432453,1.11691,1791.2,1790.9,4.106]
[1743372432647,1.11691,1791.2,1790.9,5.5824]
[1743372432851,3.2078,1791.3,1791.0,5.5824]
[1743372433054,1.11694,1791.1,1791.0,5.5824]
[1743372433248,4.32474,1791.1,1791.0,5.5824]
[1743372433448,1.11706,1790.9,1790.8,55.674]
[1743372433650,4.32486,1790.9,1790.8,55.674]
[1743372433855,4.32486,1790.9,1790.8,61.2564]
[1743372434054,3.2078,1790.9,1790.8,61.2564]
[1743372434355,4.32486,1790.9,1790.8,61.2564]
[1743372434558,4.32486,1790.9,1790.8,5.5824]
[1743372435652,5.58644,1790.6,1789.1,3.2078]
[1743372435852,1.11771,1789.9,1789.5,1.11791]
[1743372436052,1.11776,1789.8,1789.6,5.5824]
[1743372436253,1.11783,1789.7,1789.4,7.3318]
[1743372436550,4.32563,1789.7,1789.5,5.5824]
[1743372436754,3.21617544,1789.7,1789.5,5.5824]
[1743372436949,3.21617544,1789.7,1789.6,5.5824]
[1743372437452,0.00837544,1789.7,1789.6,5.5824]
[1743372437849,3.21617544,1789.7,1789.6,5.5824]
[1743372438152,0.00837544,1789.7,1789.6,5.5824]
[1743372439353,8.47837544,1789.7,1789.1,3.2078]
[1743372439554,4.32593,1789.2,1789.1,5.5824]
[1743372439749,1.11823,1789.1,1788.7,3.2078]
[1743372439950,3.2078,1789.0,1788.8,5.5824]
[1743372440149,4.32605,1789.0,1788.8,6.989]
[1743372440452,3.2078,1789.0,1788.9,6.989]
[1743372440655,3.2078,1789.0,1788.9,1.4066]
[1743372440862,3.2078,1789.0,1788.9,6.989]
[1743372441254,3.2078,1789.0,1788.7,0.001]
[1743372441255,1.11838,1788.8,1788.7,0.001]
[1743372441457,4.32618,1788.8,1788.7,0.001]
[1743372441754,3.2078,1789.2,1788.7,12.2404]
[1743372441951,4.32593,1789.2,1788.8,8.10735]
[1743372442160,3.2078,1789.2,1788.9,2.51301]
[1743372442457,0.00837544,1789.7,1788.9,2.51301]
[1743372442458,3.2078,1789.6,1789.0,4.167]
[1743372442655,3.2078,1789.6,1789.1,1.3947]
[1743372442858,0.00837544,1789.7,1789.2,5.5824]
[1743372443158,0.00837544,1789.7,1789.5,1.11791]
[1743372443455,0.00837544,1789.7,1789.6,1.3947]
[1743372443760,0.00837544,1789.7,1789.6,6.9771]
[1743372445552,1.12618544,1789.7,1789.6,6.9771]
[1743372445756,1.12618544,1789.7,1789.6,1.3947]
[1743372446260,1.14408544,1789.7,1789.6,1.3947]
[1743372446459,8.49627544,1789.7,1789.0,3.2078]
[1743372446656,1.11813,1789.2,1788.9,1.11827]
[1743372446963,3.2078,1789.1,1789.0,5.5824]
[1743372447153,1.11808,1789.3,1789.0,1.11823]
[1743372447353,1.11808,1789.3,1789.1,5.5824]
[1743372447354,3.2078,1789.2,1789.1,5.5824]
[1743372447556,3.2078,1789.4,1789.1,5.5824]
[1743372447859,4.32586,1789.3,1789.2,5.5824]
[1743372448066,1.11817,1789.2,1788.9,6.70069]
[1743372448252,3.2078,1789.3,1789.1,1.11815]
[1743372448456,3.2078,1789.3,1789.0,6.70059]
[1743372448761,3.2078,1789.3,1788.9,5.5824]
[1743372448957,4.32587,1789.3,1789.0,1.11825]
[1743372449169,3.2078,1789.3,1789.1,1.11818]
[1743372449359,3.2078,1789.3,1789.1,5.5824]
[1743372449650,1.11819,1789.1,1788.7,1.8395]
[1743372449857,4.32603,1789.1,1788.8,7.0016]
[1743372450057,4.32603,1789.1,1788.9,1.4192]
[1743372450255,4.32603,1789.1,1789.0,5.5824]
[1743372450451,3.2078,1789.1,1788.7,0.001]
[1743372450654,1.11831,1788.9,1788.8,1.4192]
[1743372450961,3.2078,1789.0,1788.7,0.001]
[1743372450962,1.11838,1788.8,1788.7,0.001]
[1743372451259,1.1185,1788.6,1788.4,1.4156]
[1743372451454,4.32636,1788.6,1788.4,1.4156]
[1743372451653,3.2078,1788.6,1788.4,1.4156]
[1743372451851,1.11856,1788.5,1788.4,1.4156]
[1743372452261,3.2078,1788.6,1788.4,5.5824]
[1743372452462,1.11865,1788.4,1788.0,2.53445]
[1743372452658,3.2078,1788.1,1788.0,6.998]
[1743372452962,4.32661,1788.1,1788.0,6.998]
[1743372453259,1.4123,1788.3,1788.0,6.998]
[1743372453260,4.6201,1788.3,1788.0,6.998]
[1743372453461,3.2078,1788.3,1788.1,5.5824]
[1743372453667,1.11868,1788.4,1788.1,5.5824]
[1743372453668,1.11865,1788.4,1788.1,5.5824]
[1743372453856,5.7387,1788.5,1788.2,6.998]
[1743372454166,1.11797,1789.5,1788.3,54.94852157]
[1743372454461,5.97,1789.7,1788.7,1.11841]
[1743372454462,1.11813,1789.2,1788.7,1.11841]
[1743372454761,4.3261,1789.0,1788.8,1.4894]
[1743372454966,4.241,1789.4,1788.8,1.4894]
[1743372455164,1.11819,1789.1,1788.9,2.36622456]
[1743372455463,4.32599,1789.1,1789.0,1.4894]
[1743372455765,1.11819,1789.1,1789.0,1.4894]
[1743372456161,1.11847,1788.7,1788.3,1.11869]
[1743372456365,1.11847,1788.7,1788.6,1.4894]
[1743372456561,1.11856,1788.5,1788.4,2.36622456]
[1743372456864,7.4588,1788.9,1788.5,2.36622456]
[1743372457070,3.2078,1788.6,1788.2,7.4508]
[1743372457262,3.2078,1788.6,1788.3,3.88802456]
[1743372457566,3.2078,1788.6,1788.4,1.5218]
[1743372457567,1.11855,1788.6,1788.4,1.5218]
[1743372457763,1.11856,1788.5,1788.4,3.88802456]
[1743372457976,1.11856,1788.6,1788.5,2.36622456]
[1743372458260,4.9738,1789.0,1788.5,3.48476456]
[1743372458465,1.11844,1788.7,1788.6,3.88802456]
[1743372458668,4.32624,1788.7,1788.6,1.5218]
[1743372458867,4.32624,1788.7,1788.6,3.88802456]
[1743372459066,1.11844,1788.7,1788.6,3.88802456]
[1743372459662,3.2078,1788.7,1788.2,3.2078]
[1743372459863,1.11863,1788.4,1788.3,3.88802456]
[1743372460068,4.32643,1788.4,1788.3,1.5218]
[1743372460270,1.11892,1788.0,1787.8,4.289]
[1743372460464,1.11892,1788.0,1787.9,2.36622456]
[1743372460660,4.32672,1788.0,1787.9,2.36622456]
[1743372460865,1.11892,1788.0,1787.9,2.36622456]
[1743372461268,4.32672,1788.0,1787.9,0.86061456]
[1743372461462,3.2078,1787.2,1785.0,1.43845652]
[1743372461666,3.2078,1784.7,1783.1,2.44833866]
[1743372461974,4.13346245,1785.5,1780.5,57.88076646]
[1743372461975,3.2078,1781.2,1780.5,57.88076646]
[1743372462162,3.2078,1780.7,1780.5,22.62086646]
[1743372462363,5.579,1781.6,1780.8,67.2096]
[1743372462568,5.579,1781.6,1780.5,22.62086646]
[1743372462569,0.00842413,1780.8,1780.5,22.62086646]
[1743372462867,6.3942967,1781.7,1780.6,3.2078]
[1743372463061,5.97,1782.1,1781.6,7.8394]
[1743372463265,8.0961253,1782.0,1781.6,11.0472]
[1743372463577,1.12235,1782.5,1781.9,75.049]
[1743372463764,2.43797971,1783.2,1782.4,78.2568]
[1743372463965,5.64577971,1783.2,1783.1,6.14639]
[1743372464176,0.00842413,1783.0,1782.6,9.736]
[1743372464364,5.9146104,1783.1,1782.9,2.93859]
[1743372464566,3.2078,1783.0,1781.9,3.2078]
[1743372464765,3.2078,1783.0,1782.7,2.93859]
[1743372464972,1.12222,1782.7,1781.6,3.2078]
[1743372465172,1.12296,1781.5,1781.4,0.63526]
[1743372465363,3.2078,1781.5,1780.3,60.2066917]
[1743372465667,3.2078,1780.5,1780.0,1.0]
[1743372465867,3.2078,1780.1,1780.0,51.5592]
[1743372466067,3.2078,1780.1,1780.0,111.7658917]
[1743372466270,3.2078,1780.1,1780.0,1.0]
[1743372466472,3.2078,1779.8,1778.3,3.2078]
[1743372466666,51.706,1780.2,1777.3,51.72644431]
[1743372466667,3.2078,1778.4,1777.3,3.22824431]
[1743372466974,3.2078,1779.3,1778.3,3.2078]
[1743372467164,3.2078,1779.1,1778.5,3.2078]
[1743372467365,1.12485,1778.5,1778.4,6.09098764]
[1743372467569,1.12637,1776.1,1776.0,1.81904]
[1743372467767,1.12637,1776.1,1773.1,6.13483354]
[1743372467768,3.2078,1775.0,1774.4,5.7e-06]
[1743372467971,11.76578354,1776.4,1774.4,5.7e-06]
[1743372467972,3.2078,1774.5,1774.4,5.7e-06]
[1743372468172,3.2078,1775.8,1774.5,60.2066917]
[1743372468472,4.33513,1774.6,1774.5,6.0034451]
[1743372468768,2.81967,1773.8,1772.3,3.2078]
[1743372468973,3.2078,1773.5,1772.8,3.2078]
[1743372469169,3.2078,1773.5,1772.1,60.2066917]
[1743372469170,0.11277771,1773.4,1772.6,3.2078]
[1743372469366,3.2078,1774.0,1773.2,67.2096]
[1743372469566,0.00844928,1773.3,1772.7,4.75622255]
[1743372469768,3.2078,1773.2,1772.7,4.75622255]
[1743372469964,3.2078,1772.8,1772.0,0.00620686]
[1743372470167,3.2078,1772.4,1772.0,0.00620686]
[1743372470367,3.2078,1772.9,1772.3,66.03077]
[1743372470563,2.81691,1775.5,1772.8,3.2078]
[1743372470771,17.56568245,1774.1,1773.9,1.1267]
[1743372471074,5.97,1778.3,1775.0,58.70018241]
[1743372471269,3.2078,1778.7,1777.6,3.2078]
[1743372471475,11.75404354,1780.2,1778.2,3.2078]
[1743372471683,3.2078,1779.5,1778.7,3.2078]
[1743372471862,6.22783659,1780.1,1779.1,3.2078]
[1743372472069,1.12343,1780.8,1780.5,3.2078]
[1743372472265,1.12298,1781.5,1781.2,3.2078]
[1743372472467,1.12298,1781.5,1780.6,1.1267]
[1743372472468,3.2078,1782.8,1781.6,3.2078]
[1743372472673,1.12245,1782.3,1782.2,3.2078]
[1743372472871,3.2078,1783.2,1782.2,3.2078]
[1743372473076,46.40517624,1781.4,1780.8,3.22424722]
[1743372473268,3.2078,1779.4,1776.9,0.7562]
[1743372473467,3.2078,1779.1,1778.1,3.2078]
[1743372473665,3.2078,1779.5,1778.3,3.2078]
[1743372473865,3.2078,1779.9,1778.7,3.2078]
[1743372474171,3.2078,1779.0,1778.0,7.2736638]
[1743372474471,0.00842176,1779.1,1778.5,3.2078]
[1743372474674,0.84391211,1779.3,1779.0,3.2078]
[1743372474875,11.54730731,1780.0,1779.3,61.90798241]
[1743372475073,18.60420975,1780.6,1779.2,3.2078]
[1743372475074,15.39640975,1780.6,1779.9,65.11578241]
[1743372475273,59.07384826,1781.2,1780.5,122.49571024]
[1743372475467,59.07384826,1781.2,1779.8,2.81007]
[1743372475468,59.07384826,1781.2,1781.0,63.2601097]
[1743372475667,59.07384826,1781.2,1781.0,55.0928]
[1743372475872,59.07384826,1781.2,1779.9,13.17209424]
[1743372475873,1.12391,1780.0,1779.9,13.17209424]
[1743372476071,1.12391,1780.0,1779.3,3.2078]
[1743372476072,3.2078,1780.0,1779.3,3.2078]
[1743372476274,3.2078,1779.9,1779.5,3.2078]
[1743372476572,1.4898,1781.1,1779.0,51.886]
[1743372476573,3.2078,1779.6,1779.0,51.886]
[1743372476877,1.12408,1779.8,1778.1,7.92787563]
[1743372476878,3.2078,1779.1,1778.1,111.12160054]
[1743372477066,6.33216793,1779.8,1779.1,0.00842176]
[1743372477067,0.00842176,1779.5,1779.1,0.00842176]
[1743372477270,0.00842176,1779.5,1779.2,23.80203316]
[1743372477572,3.2078,1780.6,1779.9,60.0523097]
[1743372477769,3.2078,1780.6,1779.1,0.00842176]
[1743372477770,3.2078,1780.1,1779.1,0.00842176]
[1743372477972,3.2078,1779.2,1778.0,3.9582]
[1743372478176,3.2078,1779.1,1778.2,3.2078]
[1743372478471,3.2078,1779.1,1778.3,122.49571024]
[1743372478672,3.2078,1779.6,1778.7,3.2078]
[1743372478873,3.2078,1779.8,1779.2,61.1766997]
[1743372479074,3.2078,1779.8,1778.2,14.02177447]
[1743372479279,3.2078,1778.3,1777.7,0.6959]
[1743372479474,4.96041849,1779.7,1777.8,59.23560054]
[1743372479475,3.2078,1778.5,1777.8,59.23560054]
[1743372479679,3.2078,1778.1,1777.8,59.23560054]
[1743372479876,3.2078,1777.9,1777.8,77.07678592]
[1743372480067,3.2078,1777.9,1777.2,51.886]
[1743372480274,3.2078,1777.9,1777.4,1.12555]
[1743372480470,3.2078,1778.8,1777.7,3.21622176]
[1743372480772,3.2078,1779.8,1778.7,3.2078]
[1743372480967,6.65622164,1781.3,1779.4,3.2078]
[1743372480968,3.2078,1780.4,1779.4,3.2078]
[1743372481171,3.2078,1779.5,1778.8,7.44875515]
[1743372481378,3.2078,1779.1,1778.8,56.02780054]
[1743372481568,3.2078,1779.1,1777.7,0.5624]
[1743372481569,3.2078,1778.9,1777.7,3.2078]
[1743372481769,3.2078,1778.4,1777.8,56.02780054]
[1743372481972,3.2078,1778.7,1778.1,0.00842176]
[1743372482172,3.2078,1779.7,1778.5,3.2078]
[1743372482372,3.2078,1779.9,1779.1,3.2078]
[1743372482571,3.2078,1779.9,1779.4,1.12425]
[1743372482777,3.2078,1780.2,1779.7,3.2078]
[1743372483176,3.2078,1780.0,1779.7,56.00250502]
[1743372483479,3.2078,1780.0,1779.8,0.00842176]
[1743372483778,3.2078,1780.0,1778.3,0.7879]
[1743372483779,3.2078,1779.9,1779.3,56.00250502]
[1743372483981,3.2078,1779.4,1778.5,3.2078]
[1743372484186,3.2078,1778.4,1776.9,0.69]
[1743372484485,5.6225,1779.1,1776.9,0.69]
[1743372484486,3.2078,1778.0,1777.0,3.2078]
[1743372484683,3.2078,1777.4,1777.0,1.4438]
[1743372484978,3.2078,1777.6,1777.3,0.00842176]
[1743372485185,3.2078,1778.8,1777.5,3.2078]
[1743372485478,3.2078,1780.3,1778.7,3.2078]
[1743372485680,5.61513,1781.5,1780.0,3.2078]
[1743372485681,3.2078,1780.8,1780.0,3.2078]
[1743372485879,3.2078,1780.1,1779.7,51.944]
[1743372486084,1.4933,1781.0,1779.6,3.2078]
[1743372486085,3.2078,1780.5,1779.6,3.2078]
[1743372486384,0.00842176,1780.0,1779.8,3.2078]
[1743372486678,3.2078,1780.3,1779.7,3.21622176]
[1743372486876,3.84843164,1780.6,1779.9,3.2078]
[1743372487075,3.2078,1781.7,1780.5,3.2078]
[1743372487279,3.2078,1781.7,1779.7,0.00842176]
[1743372487280,3.2078,1781.7,1781.3,3.2078]
[1743372487475,3.2078,1781.7,1781.2,3.2078]
[1743372487677,3.2078,1781.7,1781.0,3.2078]
[1743372487678,1.12305,1781.4,1781.0,3.2078]
[1743372487873,1.12305,1781.4,1780.9,51.944]
[1743372487874,1.12305,1781.4,1781.3,3.21622176]
[1743372488175,1.12305,1781.4,1780.5,3.2078]
[1743372488176,3.2078,1781.4,1780.5,3.2078]
[1743372488375,3.2078,1781.1,1780.3,55.1518]
[1743372488674,3.2078,1781.4,1780.5,3.2078]
[1743372488869,3.2078,1781.2,1780.5,3.2078]
[1743372489075,3.2078,1781.2,1780.3,55.1518]
[1743372489283,3.2078,1780.8,1780.3,19.244]
[1743372489480,3.2078,1780.5,1780.1,3.2078]
[1743372489680,3.2078,1780.7,1780.4,0.00842176]
[1743372489878,1.12398,1779.9,1779.7,55.1348]
[1743372490078,3.2078,1780.3,1779.7,55.1348]
[1743372490279,1.12403,1779.8,1779.7,23.84822255]
[1743372490483,6.01794,1779.8,1779.1,52.7238]
[1743372490674,3.2078,1780.0,1779.1,51.927]
[1743372490883,3.2078,1779.4,1778.6,3.2078]
[1743372491183,1.12469,1778.8,1778.5,51.927]
[1743372491374,3.2078,1779.0,1778.8,0.00842176]
[1743372491578,1.1246,1778.9,1778.8,0.00842176]
[1743372491781,1.12474,1778.7,1778.2,3.2078]
[1743372491982,3.2078,1779.0,1778.2,3.2078]
[1743372492179,3.2078,1778.7,1778.2,3.2078]
[1743372492483,3.2078,1778.3,1778.0,1.4651]
[1743372492679,3.2078,1778.4,1778.0,1.4651]
[1743372492880,3.2078,1779.3,1778.3,3.2078]
[1743372493091,3.2078,1779.5,1778.6,3.2078]
[1743372493279,0.00842176,1779.0,1778.7,1.4651]
[1743372493579,0.00842176,1779.0,1778.7,3.21622176]
[1743372493778,0.00842176,1779.0,1778.7,0.00842176]
[1743372493981,3.2078,1778.0,1776.5,3.2078]
[1743372494176,3.2078,1778.0,1774.3,5.52047]
[1743372494177,3.2078,1776.2,1774.8,3.2078]
[1743372494377,3.2078,1776.4,1775.0,3.2078]
[1743372494575,4.29337,1776.7,1774.9,0.5632]
[1743372494773,3.2078,1775.5,1775.0,3.2078]
[1743372494974,3.2078,1775.7,1775.2,3.2078]
[1743372495181,3.2078,1776.5,1775.6,3.2078]
[1743372495376,0.00844832,1775.6,1775.3,65.51424805]
[1743372495580,3.2078,1776.3,1775.7,7.24174333]
[1743372495883,3.2078,1776.5,1775.9,3.2078]
[1743372496082,3.2078,1776.7,1775.9,3.2078]
[1743372496284,3.2078,1777.0,1776.4,1.12615]
[1743372496487,3.2078,1777.0,1776.5,55.1428]
[1743372496680,3.2078,1777.7,1776.9,3.2078]
[1743372496881,3.2078,1778.1,1777.6,3.2078]
[1743372497186,3.2078,1778.8,1778.0,1.12514]
[1743372497379,1.12478,1778.7,1778.0,3.2078]
[1743372497577,1.12503,1778.3,1777.9,3.2078]
[1743372497783,0.00844832,1778.6,1777.9,3.2078]
[1743372497976,0.00844832,1778.6,1777.1,2.81423]
[1743372497977,0.00844832,1777.8,1777.1,51.951]
[1743372498182,1.12606,1776.6,1776.5,51.951]
[1743372498388,3.2078,1777.0,1776.5,51.951]
[1743372498590,3.2078,1777.2,1776.6,1.12604]
[1743372498789,3.2078,1777.0,1776.5,51.951]
[1743372498989,3.2078,1777.7,1776.7,7.1625388]
[1743372499288,3.2078,1777.8,1777.3,3.2078]
[1743372499486,3.2078,1777.8,1777.4,53.07653]
[1743372499686,3.2078,1777.8,1777.4,55.1588]
[1743372499986,1.12495,1778.4,1777.7,1.12536]
[1743372500187,0.00844832,1777.8,1777.5,7.2228486]
[1743372500488,0.00844832,1777.8,1777.4,51.951]
[1743372500684,3.21624832,1777.8,1777.5,0.00844832]
[1743372500989,3.22469664,1777.8,1777.4,23.82902743]
[1743372501291,3.2078,1777.5,1777.4,23.82902743]
[1743372501478,4.33329,1777.5,1777.4,23.82902743]
[1743372501691,3.2078,1777.5,1777.4,23.82902743]
[1743372501879,3.67101458,1777.5,1776.9,51.9592]
[1743372502189,1.13428832,1777.0,1776.5,1.4733]
[1743372502382,3.2078,1776.8,1776.5,2.59941]
[1743372502583,1.13427832,1777.0,1776.6,0.00844832]
[1743372502584,3.2078,1777.0,1776.6,0.00844832]
[1743372502784,3.21624832,1777.4,1776.6,10.67577272]
[1743372502984,0.00844832,1777.4,1776.8,3.2078]
[1743372503188,0.00844832,1777.4,1777.3,1.12561]
[1743372503582,0.00844832,1777.4,1777.3,5.12511]
[1743372503787,1.12526,1777.9,1777.3,2.5]
[1743372503788,3.2078,1777.9,1777.3,2.5]
[1743372504094,3.2078,1777.9,1777.5,1.12545]
[1743372504293,3.2078,1777.9,1777.4,3.2078]
[1743372504590,3.2078,1778.3,1777.6,10.52853117]
[1743372504786,2.5,1778.3,1777.9,3.2078]
[1743372505086,1.4927,1778.9,1778.0,53.10017]
[1743372505087,0.00844832,1778.1,1778.0,53.10017]
[1743372505686,3.2078,1778.7,1778.0,54.475]
[1743372505882,0.00844832,1778.6,1778.3,1.12495]
[1743372506085,0.00844832,1778.6,1778.0,51.975]
[1743372506286,2.5,1778.6,1778.4,1.12485]
[1743372506587,3.2078,1778.5,1778.0,51.975]
[1743372506784,2.5,1778.6,1778.3,1.12493]
[1743372507090,0.00844832,1778.4,1778.0,55.1828]
[1743372507291,0.00844832,1778.4,1778.3,1.12498]
[1743372507886,0.00844832,1778.4,1778.3,3.62498]
[1743372508084,0.00844832,1778.4,1778.1,3.2078]
[1743372508290,0.00844832,1778.4,1778.3,1.12498]
[1743372509000,0.84351648,1778.5,1778.3,2.5]
[1743372509298,4.05131648,1778.5,1778.0,34.21008543]
[1743372509499,4.05131648,1778.5,1778.3,1.12496]
[1743372509694,4.05131648,1778.5,1777.8,0.00844832]
[1743372509695,0.00844832,1778.1,1777.8,0.00844832]
[1743372509996,3.2078,1777.9,1777.8,0.00844832]
[1743372510293,0.00844832,1777.7,1777.4,45.40941566]
[1743372510496,3.2078,1777.7,1777.6,1.12542]
[1743372510895,0.00844832,1778.1,1778.0,1.12517]
[1743372511095,25.82603116,1778.4,1777.6,2.5]
[1743372511096,3.2078,1778.3,1778.2,1.12504]
[1743372511292,3.21624832,1778.3,1777.7,2.81341]
[1743372511592,3.2078,1778.3,1778.2,1.12504]
[1743372511996,3.2078,1778.3,1777.7,3.2078]
[1743372512294,3.2078,1778.1,1778.0,1.12517]
[1743372512685,0.00844832,1778.2,1778.1,1.12511]
[1743372512995,0.00844832,1778.2,1777.8,0.00844832]
[1743372513193,0.00844832,1778.2,1778.1,1.12511]
[1743372513591,17.72394468,1778.2,1778.1,1.12511]
[1743372513899,20.93174468,1778.2,1777.8,0.00844832]
[1743372514193,3.21624832,1778.1,1777.8,0.00844832]
[1743372514408,3.21624832,1778.1,1777.9,1.12521]
[1743372514586,3.2078,1778.0,1777.9,1.12521]
[1743372514789,3.2078,1778.0,1777.4,49.59916566]
[1743372514790,1.12545,1777.6,1777.4,45.97261566]
[1743372514990,3.2078,1777.5,1777.4,45.40941566]
[1743372515191,3.21624832,1777.5,1777.4,45.40941566]
[1743372515395,3.2078,1777.5,1777.4,46.53496566]
[1743372515694,3.2078,1777.5,1777.4,25.16279705]
[1743372515897,5.71624832,1777.5,1776.8,51.968]
[1743372516101,3.2078,1777.5,1777.4,1.12555]
[1743372516397,3.2078,1777.7,1777.6,1.12542]
[1743372516597,17.71549636,1777.5,1777.4,1.12555]
[1743372516787,17.71549636,1777.5,1777.0,3.21624832]
[1743372516995,17.71549636,1777.5,1777.4,1.12555]
[1743372517297,20.92329636,1777.5,1777.2,1.12562]
[1743372517493,3.21624832,1777.3,1777.2,1.12568]
[1743372517799,17.71549636,1777.5,1777.4,1.12555]
[1743372518000,0.00844832,1777.4,1777.3,1.12559]
[1743372518193,20.21549636,1777.5,1777.4,1.12555]
[1743372518194,17.72394468,1777.5,1777.4,1.12555]
[1743372518392,20.22394468,1777.5,1777.1,7.44870542]
[1743372518601,3.2078,1777.3,1777.2,1.12567]
[1743372519302,3.21624832,1777.3,1777.2,1.12567]
[1743372519495,6.17909666,1777.3,1777.0,0.00844832]
[1743372519702,0.00844832,1777.1,1777.0,1.13424832]
[1743372519998,3.67064834,1777.1,1776.8,51.968]
[1743372520201,0.47129666,1777.0,1776.8,51.968]
[1743372520402,0.46284834,1776.9,1776.8,53.09393]
[1743372520894,0.46316953,1776.9,1776.8,53.0939]
[1743372521292,1.5212,1777.1,1777.0,1.1258]
[1743372521498,1.98449084,1777.1,1777.0,1.1258]
[1743372521699,0.46329084,1777.1,1777.0,1.1258]
[1743372522296,0.00844832,1777.2,1777.1,1.12574]
[1743372522496,3.21624832,1777.2,1777.1,1.12574]
[1743372523506,6.91040453,1777.2,1776.8,37.90004219]
[1743372523705,1.12593,1776.8,1776.7,0.00844832]
[1743372523902,2.81499,1776.7,1775.8,1.12655]
[1743372524098,3.2078,1775.9,1775.6,51.982]
[1743372524303,3.2078,1775.9,1775.3,3.2078]
[1743372524497,3.2078,1773.3,1772.1,1.05747]
[1743372524806,3.2078,1771.7,1770.4,0.564]
[1743372525000,3.2078,1770.5,1769.7,1.989]
[1743372525204,0.00844832,1771.1,1770.9,0.00844832]
[1743372525407,0.00844832,1770.5,1770.3,51.992]
[1743372525610,3.2078,1770.4,1769.7,53.981]
[1743372525806,3.2078,1770.3,1769.7,53.981]
[1743372526105,2.5,1771.2,1770.6,1.12982]
[1743372526304,3.2078,1770.9,1770.6,1.12983]
[1743372526505,0.00844832,1771.0,1770.7,1.12979]
[1743372526707,0.00844832,1772.6,1770.9,3.2078]
[1743372526910,0.81062705,1772.3,1772.2,3.2078]
[1743372527107,3.2078,1773.4,1772.2,2.5]
[1743372527409,3.2078,1773.8,1773.1,3.2078]
[1743372527599,3.2078,1774.0,1773.0,3.2078]
[1743372527805,2.82087,1773.0,1771.1,3.2078]
[1743372528108,24.35850373,1770.9,1770.4,3.2078]
[1743372528407,24.35850373,1770.9,1768.1,677.13114011]
[1743372528408,24.35850373,1770.9,1770.7,3.2078]
[1743372528812,26.85850373,1770.9,1770.5,0.0084741]
[1743372529011,4.7422,1770.8,1769.9,3.2078]
[1743372529213,3.2078,1769.8,1767.1,0.44177009]
[1743372529511,60.08914011,1770.7,1767.1,3.2078]
[1743372529512,3.2078,1768.2,1767.1,3.2078]
[1743372529706,3.2078,1768.2,1767.6,7.40994242]
[1743372529905,3.2078,1768.4,1767.7,3.2078]
[1743372530111,3.2078,1767.8,1767.2,13.34854807]
[1743372530314,3.2078,1769.7,1767.9,3.2078]
[1743372530611,23.38560373,1770.9,1769.5,3.2078]
[1743372530810,3.2078,1770.1,1768.0,8.11390022]
[1743372531010,3.2078,1769.7,1768.7,3.2078]
[1743372531208,3.2078,1771.4,1769.6,3.2078]
[1743372531411,3.2078,1773.0,1771.2,3.2078]
[1743372531614,0.7423,1773.2,1771.7,3.2078]
[1743372531615,3.2078,1772.9,1771.7,3.2078]
[1743372531815,0.7423,1773.2,1772.5,3.2078]
[1743372532015,0.7423,1773.2,1771.9,0.0084741]
[1743372532016,3.9501,1773.2,1772.6,3.2078]
[1743372532315,3.2078,1772.7,1772.1,3.2078]
[1743372532520,0.0084741,1773.1,1772.2,3.20780176]
[1743372532714,3.2078,1772.5,1771.9,3.2078]
[1743372532909,1.12873,1772.4,1772.1,3.2078]
[1743372533115,3.2078,1773.0,1772.3,3.2078]
[1743372533314,1.12916,1771.8,1771.5,10.50965486]
[1743372533516,1.4908,1773.0,1771.7,3.2078]
[1743372533817,3.2078,1772.8,1772.2,3.2078]
[1743372534022,1.4908,1773.0,1772.2,0.0084741]
[1743372534023,0.0084741,1772.5,1772.2,0.0084741]
[1743372534213,3.2078,1772.4,1770.9,3.2078]
[1743372534413,6.15930565,1772.4,1771.6,3.2078]
[1743372534618,1.4992741,1772.5,1772.2,3.2078]
[1743372534817,3.2078,1771.8,1771.3,7.49009499]
[1743372535017,3.2078,1772.0,1771.2,3.2078]
[1743372535220,6.15930565,1772.4,1771.8,3.2078]
[1743372535519,3.2078,1773.7,1772.8,1.12847]
[1743372535720,3.2078,1773.7,1771.9,52.122]
[1743372535721,0.0084741,1772.3,1772.0,3.2078]
[1743372535919,0.0084741,1772.3,1770.9,3.2078]
[1743372535920,3.2078,1772.1,1770.9,3.2078]
[1743372536126,1.1288,1772.3,1771.7,3.2078]
[1743372536323,0.0084741,1772.3,1772.2,3.2078]
[1743372536528,3.2162741,1772.3,1771.9,3.2078]
[1743372536820,3.2078,1772.0,1771.4,1.12935]
[1743372537023,0.0084741,1772.3,1771.6,3.2078]
[1743372537220,5.63693,1774.6,1771.6,3.2078]
[1743372537221,3.2078,1773.9,1772.4,2.82172]
[1743372537527,3.2078,1774.7,1773.6,3.2078]
[1743372537823,3.2078,1774.0,1773.5,3.2078]
[1743372538021,1.4631,1773.9,1773.5,3.2078]
[1743372538223,3.2078,1773.6,1773.0,3.2078]